bitfinex/quotes_BTCUSD_20250730
["timestamp","ask_amount","ask_price","bid_price","bid_amount"]
[1753906631576,0.75334308,117410.0,117400.0,0.07828]
[1753906631805,4.4692503,117410.0,117400.0,0.07842522]
[1753906632013,4.49527358,117410.0,117400.0,0.00014522]
[1753906632228,4.52088858,117410.0,117400.0,0.00014522]
[1753906632430,4.51237164,117410.0,117400.0,0.00014522]
[1753906632835,4.53422174,117410.0,117400.0,0.07842522]
[1753906633248,4.61530612,117410.0,117400.0,0.00014522]
[1753906633455,4.62468284,117410.0,117400.0,0.00014522]
[1753906634041,4.63265203,117410.0,117400.0,0.00014522]
[1753906634249,4.63265203,117410.0,117400.0,0.00114522]
[1753906634417,4.64810116,117410.0,117400.0,0.00114522]
[1753906635269,4.59758116,117410.0,117400.0,0.00114522]
[1753906635832,4.64810116,117410.0,117400.0,0.00114522]
[1753906636448,1.64306516,117410.0,117400.0,0.00114522]
[1753906636649,4.64810116,117410.0,117400.0,0.00114522]
[1753906637083,5.09650116,117410.0,117400.0,0.00114522]
[1753906637297,5.04598116,117410.0,117400.0,0.00114522]
[1753906637519,5.04598116,117410.0,117400.0,0.00014522]
[1753906637731,5.03059441,117410.0,117400.0,0.00014522]
[1753906637946,4.99996765,117410.0,117400.0,0.00214522]
[1753906638157,5.00096765,117410.0,117400.0,0.00214522]
[1753906638375,5.0315959,117410.0,117400.0,0.00214522]
[1753906639676,4.9992959,117410.0,117400.0,0.00214522]
[1753906639891,4.9992959,117410.0,117400.0,0.08030638]
[1753906640102,4.39128561,117410.0,117400.0,0.08227638]
[1753906640316,4.5190691,117410.0,117400.0,0.08227638]
[1753906640517,4.53651812,117410.0,117400.0,0.08227638]
[1753906640750,4.5190691,117410.0,117400.0,0.08227638]
[1753906641171,5.18897301,117410.0,117400.0,0.00202638]
[1753906641520,5.32965794,117410.0,117400.0,0.00202638]
[1753906641727,4.90782778,117410.0,117400.0,0.00202638]
[1753906641934,4.88221278,117410.0,117400.0,0.00202638]
[1753906642156,4.91301278,117410.0,117400.0,0.00202638]
[1753906642381,5.34113619,117410.0,117400.0,0.00202638]
[1753906642615,2.30546792,117410.0,117400.0,0.00202638]
[1753906642831,5.31050392,117410.0,117400.0,0.00202638]
[1753906643258,5.086451,117410.0,117400.0,0.00202638]
[1753906643678,3.93244497,117390.0,117380.0,0.03097638]
[1753906643882,3.5499101,117380.0,117370.0,0.0004]
[1753906644092,4.19071799,117380.0,117370.0,0.00251539]
[1753906644309,4.19071799,117380.0,117370.0,0.03291539]
[1753906644741,4.04218594,117380.0,117370.0,0.03291539]
[1753906644944,4.11814359,117380.0,117370.0,0.06321539]
[1753906645181,4.12666263,117380.0,117370.0,0.06321539]
[1753906645384,4.30556917,117380.0,117370.0,0.06321539]
[1753906645541,4.30556917,117380.0,117370.0,0.06721539]
[1753906645756,4.11814395,117380.0,117370.0,0.14276539]
[1753906646223,4.15194928,117380.0,117370.0,0.14276539]
[1753906646422,4.14343009,117380.0,117370.0,0.14276539]
[1753906646598,4.38208531,117380.0,117370.0,0.11246539]
[1753906646923,4.38219989,117380.0,117370.0,0.11246539]
[1753906647161,4.37368099,117380.0,117370.0,0.11246539]
[1753906647391,4.35530421,117380.0,117370.0,0.11246539]
[1753906647944,4.20329311,117380.0,117370.0,0.11246539]
[1753906648142,4.05365445,117380.0,117370.0,0.14276539]
[1753906648346,3.60871251,117380.0,117370.0,0.14582539]
[1753906649271,3.45082637,117380.0,117370.0,0.14582539]
[1753906649474,3.14561325,117380.0,117370.0,0.14582539]
[1753906649726,3.48561325,117380.0,117370.0,0.14582539]
[1753906650943,3.477636,117380.0,117370.0,0.14584539]
[1753906651160,3.345036,117380.0,117370.0,0.14584539]
[1753906651358,0.4726,117380.0,117370.0,0.23032269]
[1753906654241,0.4726,117380.0,117370.0,0.14584539]
[1753906654457,0.51405032,117380.0,117370.0,0.14584539]
[1753906654897,0.4726,117380.0,117370.0,0.14584539]
[1753906655122,0.47256,117380.0,117370.0,0.14584539]
[1753906659266,0.13256,117380.0,117370.0,0.14584539]
[1753906659939,3.005036,117390.0,117380.0,0.0638]
[1753906660187,3.005036,117390.0,117380.0,0.54202097]
[1753906660423,3.005036,117390.0,117380.0,0.1424]
[1753906661600,3.005036,117390.0,117380.0,0.14034]
[1753906662037,3.137596,117390.0,117380.0,0.14034]
[1753906662248,0.13256,117390.0,117380.0,0.14034]
[1753906662956,0.13256,117390.0,117380.0,0.14134]
[1753906663593,0.13256,117390.0,117380.0,0.1444]
[1753906663807,3.505036,117400.0,117390.0,0.0638]
[1753906664020,0.13252,117400.0,117390.0,0.06579]
[1753906664232,0.63252,117400.0,117390.0,0.13934]
[1753906665170,0.63452,117400.0,117390.0,0.13934]
[1753906666583,0.47452,117400.0,117390.0,0.13934]
[1753906668294,0.4765,117400.0,117390.0,0.13934]
[1753906668497,0.88655953,117400.0,117390.0,0.0638]
[1753906668722,0.95804953,117400.0,117390.0,0.0638]
[1753906669128,3.96308553,117400.0,117390.0,0.0638]
[1753906671695,3.96308553,117400.0,117390.0,0.13735]
[1753906672346,3.96308553,117400.0,117390.0,0.0638]
[1753906673236,4.00753622,117400.0,117390.0,0.0638]
[1753906673451,3.555996,117400.0,117390.0,0.0638]
[1753906673671,3.96308553,117400.0,117390.0,0.0638]
[1753906673882,3.96308553,117400.0,117390.0,0.13735]
[1753906674509,3.89159553,117400.0,117390.0,0.13735]
[1753906675588,0.34,117390.0,117380.0,0.0311]
[1753906675825,0.34,117390.0,117370.0,0.13659539]
[1753906675826,4.04727283,117390.0,117370.0,0.13659539]
[1753906676045,3.54460553,117380.0,117370.0,0.13659539]
[1753906676253,0.13744,117380.0,117370.0,0.13659539]
[1753906677518,3.54956553,117380.0,117370.0,0.13659539]
[1753906677773,3.62279553,117380.0,117370.0,0.06304539]
[1753906678677,3.62279553,117380.0,117370.0,0.06504539]
[1753906678913,3.17845612,117380.0,117370.0,0.13591539]
[1753906679156,3.65877565,117380.0,117370.0,0.03394539]
[1753906679381,3.77495295,117380.0,117370.0,0.00254539]
[1753906679608,3.77495295,117380.0,117370.0,0.00454539]
[1753906680057,3.70172295,117380.0,117370.0,0.00454539]
[1753906680299,3.77495295,117380.0,117370.0,0.00454539]
[1753906680730,3.3001833,117380.0,117370.0,0.03594539]
[1753906680966,3.3001833,117380.0,117370.0,0.10681539]
[1753906681182,3.2269533,117380.0,117370.0,0.13791539]
[1753906681848,3.2269533,117380.0,117370.0,0.10681539]
[1753906681849,3.63404283,117380.0,117370.0,0.10681539]
[1753906682274,3.70727283,117380.0,117370.0,0.10681539]
[1753906682492,3.79175013,117380.0,117370.0,0.03594539]
[1753906683160,4.07817283,117380.0,117370.0,0.00454539]
[1753906683382,4.34465928,117380.0,117370.0,0.00454539]
[1753906683608,4.36169744,117380.0,117370.0,0.00454539]
[1753906683828,4.53154947,117380.0,117370.0,0.00454539]
[1753906684048,4.60750802,117380.0,117370.0,0.00254539]
[1753906684320,5.0194152,117380.0,117370.0,0.00254539]
[1753906684536,4.61232567,117380.0,117370.0,0.00154539]
[1753906684749,4.61232567,117380.0,117370.0,0.00254539]
[1753906685236,4.61232567,117380.0,117370.0,0.00154539]
[1753906685456,4.61532567,117380.0,117370.0,0.00154539]
[1753906685697,5.06578335,117380.0,117370.0,0.00054539]
[1753906685916,2.06074735,117380.0,117370.0,0.00054539]
[1753906686136,5.06578335,117380.0,117370.0,0.00054539]
[1753906686571,5.08172014,117380.0,117370.0,0.00054539]
[1753906687010,4.66655395,117380.0,117370.0,0.00054539]
[1753906687490,4.6481858,117380.0,117370.0,0.00054539]
[1753906689808,4.64813295,117380.0,117370.0,0.00054539]
[1753906690047,3.97025586,117380.0,117370.0,0.00054539]
[1753906690275,4.52700798,117380.0,117370.0,0.00054539]
[1753906690499,4.50997026,117380.0,117370.0,0.00054539]
[1753906690715,4.11195739,117380.0,117370.0,0.00054539]
[1753906690943,4.50997026,117380.0,117370.0,0.00054539]
[1753906691158,4.59444756,117380.0,117370.0,0.00054539]
[1753906692010,4.42406036,117380.0,117370.0,0.00054539]
[1753906692481,4.02604749,117380.0,117370.0,0.00054539]
[1753906692716,4.43257962,117380.0,117370.0,0.00054539]
[1753906692955,4.60296639,117380.0,117370.0,0.00054539]
[1753906693203,4.61630334,117380.0,117370.0,0.00054539]
[1753906694093,4.43739724,117380.0,117370.0,0.00054539]
[1753906694304,4.42887827,117380.0,117370.0,0.00054539]
[1753906694517,4.44534691,117380.0,117370.0,0.00054539]
[1753906694701,4.54372603,117380.0,117370.0,0.00054539]
[1753906694915,4.6242528,117380.0,117370.0,0.00054539]
[1753906695131,4.22624029,117380.0,117370.0,0.00054539]
[1753906695344,4.62425316,117380.0,117370.0,0.00054539]
[1753906695833,4.61573426,117380.0,117370.0,0.00054539]
[1753906696705,4.60721514,117380.0,117370.0,0.00054539]
[1753906697190,4.62311849,117380.0,117370.0,0.00054539]
[1753906697403,4.72368776,117380.0,117370.0,0.00054539]
[1753906697618,4.69934874,117380.0,117370.0,0.00054539]
[1753906697836,4.7176791,117380.0,117370.0,0.00054539]
[1753906698049,4.9176791,117380.0,117370.0,0.00054539]
[1753906698265,4.96701812,117380.0,117370.0,0.00054539]
[1753906698743,5.36503099,117380.0,117370.0,0.00054539]
[1753906698963,4.98999158,117380.0,117370.0,0.00054539]
[1753906699396,4.43251158,117380.0,117370.0,0.00054539]
[1753906699655,4.5841991,117380.0,117370.0,0.00054539]
[1753906699915,4.7196791,117380.0,117370.0,0.00054539]
[1753906700150,4.63038382,117380.0,117370.0,0.00054539]
[1753906700392,4.65538382,117380.0,117370.0,0.00054539]
[1753906700824,4.65238382,117380.0,117370.0,0.00054539]
[1753906701046,4.52390382,117380.0,117370.0,0.00054539]
[1753906701267,4.74086112,117380.0,117370.0,0.00054539]
[1753906701710,5.00864668,117380.0,117370.0,0.00054539]
[1753906701923,4.98818085,117380.0,117370.0,0.00054539]
[1753906702139,5.6566883,117380.0,117370.0,0.00054539]
[1753906702371,5.65418067,117380.0,117370.0,0.00054539]
[1753906702590,5.2561678,117380.0,117370.0,0.00054539]
[1753906702805,5.23570197,117380.0,117370.0,0.00054539]
[1753906703880,5.23570197,117380.0,117360.0,0.0004]
[1753906703881,3.70353622,117370.0,117360.0,0.0004]
[1753906704089,4.47013135,117370.0,117360.0,0.00088649]
[1753906704321,4.54629135,117370.0,117360.0,0.00088649]
[1753906704538,4.55963102,117370.0,117360.0,0.00088649]
[1753906704755,4.40215102,117370.0,117360.0,0.00088649]
[1753906705015,4.742182,117370.0,117360.0,0.00088649]
[1753906705238,4.76263102,117370.0,117360.0,0.00088649]
[1753906705487,4.76604902,117370.0,117360.0,0.00088649]
[1753906705948,4.79179196,117370.0,117360.0,0.00088649]
[1753906706436,4.82442654,117370.0,117360.0,0.00088649]
[1753906706650,4.82889413,117370.0,117360.0,0.00088649]
[1753906706879,5.24621082,117370.0,117360.0,0.00088649]
[1753906707314,5.22326674,117370.0,117360.0,0.00088649]
[1753906708087,2.21823074,117370.0,117360.0,0.00088649]
[1753906708537,5.22326674,117370.0,117360.0,0.00088649]
[1753906708759,5.2232757,117370.0,117360.0,0.00088649]
[1753906709756,5.44761472,117370.0,117360.0,0.00088649]
[1753906709996,5.48345948,117370.0,117360.0,0.00088649]
[1753906710238,4.1661772,117330.0,117320.0,0.06496649]
[1753906710478,4.17043773,117330.0,117320.0,0.09720649]
[1753906710709,4.50985171,117330.0,117320.0,0.09720649]
[1753906710945,4.52319291,117330.0,117320.0,0.09720649]
[1753906711192,4.92433523,117330.0,117320.0,0.06496649]
[1753906711488,4.92433523,117330.0,117310.0,0.0306]
[1753906711489,3.37100827,117320.0,117310.0,0.0306]
[1753906711714,4.13943631,117320.0,117310.0,0.06698548]
[1753906711922,4.13943631,117320.0,117310.0,0.06902548]
[1753906712160,4.13943631,117320.0,117310.0,0.13890548]
[1753906712585,4.14795978,117320.0,117310.0,0.13890548]
[1753906712882,4.13943631,117320.0,117310.0,0.13890548]
[1753906713106,4.11386662,117320.0,117310.0,0.13890548]
[1753906713331,4.13091479,117320.0,117310.0,0.13890548]
[1753906713549,4.12239146,117320.0,117310.0,0.13890548]
[1753906713772,4.13091479,117320.0,117310.0,0.14090548]
[1753906713988,4.10589481,117320.0,117310.0,0.14090548]
[1753906714208,4.11441799,117320.0,117310.0,0.14090548]
[1753906714433,4.14425789,117320.0,117310.0,0.13786548]
[1753906714661,4.1272116,117320.0,117310.0,0.13786548]
[1753906714877,4.1192387,117320.0,117310.0,0.13786548]
[1753906715096,4.1192387,117320.0,117310.0,0.14090548]
[1753906715097,3.71157392,117320.0,117310.0,0.14090548]
[1753906715334,4.1192387,117320.0,117310.0,0.14090548]
[1753906715546,4.12776181,117320.0,117310.0,0.14090548]
[1753906716037,4.12776174,117320.0,117310.0,0.13786548]
[1753906716707,3.59136081,117320.0,117310.0,0.14290548]
[1753906716914,3.999022,117320.0,117310.0,0.14290548]
[1753906717131,3.37431992,117320.0,117310.0,0.55057026]
[1753906717349,3.4909777,117320.0,117310.0,0.14290548]
[1753906718656,3.98311978,117320.0,117310.0,0.14290548]
[1753906718886,3.6599323,117320.0,117310.0,0.14290548]
[1753906719580,3.6599323,117320.0,117310.0,0.13986548]
[1753906719581,4.06663686,117320.0,117310.0,0.13986548]
[1753906719832,4.10829186,117320.0,117310.0,0.10462548]
[1753906720048,4.12665606,117320.0,117310.0,0.10462548]
[1753906720487,3.71995128,117320.0,117310.0,0.10062548]
[1753906720716,3.71995128,117320.0,117310.0,0.10266548]
[1753906720948,3.60443178,117320.0,117310.0,0.13386548]
[1753906721174,3.59654007,117320.0,117310.0,0.13690548]
[1753906721390,3.57817587,117320.0,117310.0,0.13690548]
[1753906721615,3.44545587,117320.0,117310.0,0.13690548]
[1753906721833,3.6468306,117320.0,117310.0,0.13690548]
[1753906722055,3.66277348,117320.0,117310.0,0.13690548]
[1753906722277,3.6468306,117320.0,117310.0,0.13690548]
[1753906722493,3.2223533,117320.0,117310.0,0.13690548]
[1753906724073,3.005036,117320.0,117310.0,0.13690548]
[1753906724257,3.137876,117320.0,117310.0,0.13690548]
[1753906724933,3.477876,117320.0,117310.0,0.13690548]
[1753906728191,3.345036,117320.0,117310.0,0.13690548]
[1753906728441,3.137836,117320.0,117310.0,0.13690548]
[1753906728692,0.1328,117320.0,117310.0,0.13690548]
[1753906728911,0.03242781,117330.0,117310.0,0.13690548]
[1753906729138,0.34,117320.0,117310.0,0.46599796]
[1753906729317,0.34,117320.0,117310.0,0.06568548]
[1753906729744,0.34,117320.0,117310.0,0.13960548]
[1753906729991,0.34,117320.0,117310.0,0.14360548]
[1753906730659,0.15184702,117330.0,117320.0,0.0621]
[1753906730840,0.15184702,117330.0,117320.0,0.06414]
[1753906731105,0.15184702,117330.0,117320.0,0.13675749]
[1753906732187,0.15184702,117330.0,117320.0,0.13775749]
[1753906732626,0.01908702,117330.0,117320.0,0.53793887]
[1753906733076,0.34,117340.0,117330.0,0.0306]
[1753906733291,0.34,117340.0,117330.0,0.43082138]
[1753906733510,0.35732648,117340.0,117330.0,0.50374138]
[1753906733938,0.35732648,117340.0,117330.0,0.10556]
[1753906734141,0.35732648,117340.0,117330.0,0.13706]
[1753906736548,0.35732648,117340.0,117330.0,0.13906]
[1753906736795,0.35732648,117340.0,117330.0,0.13706]
[1753906737043,0.35732648,117340.0,117330.0,0.14006]
[1753906737729,0.35732648,117340.0,117330.0,0.13702]
[1753906738716,0.35732648,117340.0,117330.0,0.13902]
[1753906738968,3.49023613,117340.0,117330.0,0.0671]
[1753906739209,3.62275613,117340.0,117330.0,0.0671]
[1753906739409,3.57343248,117340.0,117330.0,0.0671]
[1753906740262,4.06461274,117340.0,117330.0,0.005]
[1753906740469,4.09481274,117340.0,117330.0,0.005]
[1753906740890,3.65790978,117340.0,117330.0,0.005]
[1753906741089,3.74238708,117340.0,117330.0,0.005]
[1753906741334,0.73735108,117340.0,117330.0,0.005]
[1753906741542,3.74238708,117340.0,117330.0,0.005]
[1753906741744,3.58450978,117340.0,117330.0,0.13963]
[1753906741972,3.65790978,117340.0,117330.0,0.0365]
[1753906742379,0.65287378,117340.0,117330.0,0.0365]
[1753906742789,3.65790978,117340.0,117330.0,0.0365]
[1753906744269,3.49500248,117340.0,117330.0,0.13943]
[1753906744538,3.49500248,117340.0,117330.0,0.54084138]
[1753906744539,0.64992648,117340.0,117330.0,0.54084138]
[1753906744809,0.14992648,117340.0,117330.0,0.54084138]
[1753906745036,0.14992648,117340.0,117330.0,0.54999814]
[1753906745296,0.01732648,117340.0,117330.0,0.63447544]
[1753906745739,0.13256,117360.0,117350.0,0.0631]
[1753906745988,0.14920785,117370.0,117360.0,0.0631]
[1753906746226,3.137716,117370.0,117360.0,0.13563]
[1753906746464,0.01723894,117370.0,117360.0,0.95353628]
[1753906746708,0.35723894,117370.0,117360.0,0.54619814]
[1753906746942,0.3404845,117370.0,117360.0,0.53645781]
[1753906747175,0.3404845,117370.0,117360.0,0.66925781]
[1753906747648,0.3404845,117370.0,117360.0,0.67225781]
[1753906748410,0.0004845,117370.0,117360.0,0.75673511]
[1753906749094,0.01766702,117370.0,117360.0,0.75973511]
[1753906749357,0.01766702,117370.0,117360.0,0.3621373]
[1753906749576,0.0004845,117370.0,117360.0,0.75673511]
[1753906750016,0.0024445,117370.0,117360.0,0.14163]
[1753906750286,0.0056345,117370.0,117360.0,0.14163]
[1753906750550,0.0004845,117370.0,117360.0,0.14163]
[1753906751187,0.85751479,117370.0,117360.0,0.27439]
[1753906751402,0.3404845,117370.0,117360.0,0.27439]
[1753906751623,0.3404845,117370.0,117360.0,0.14163]
[1753906752042,0.3424445,117370.0,117360.0,0.14163]
[1753906753763,0.3404845,117370.0,117360.0,0.14163]
[1753906754442,0.3572209,117370.0,117360.0,0.14163]
[1753906754669,0.3623709,117370.0,117360.0,0.14163]
[1753906754895,0.53185249,117370.0,117360.0,0.13955]
[1753906755103,0.4950509,117370.0,117360.0,1.13955]
[1753906756809,0.3623709,117370.0,117360.0,1.13955]
[1753906757913,0.3591809,117370.0,117360.0,1.14163]
[1753906758122,0.3572209,117370.0,117360.0,1.14163]
[1753906758338,0.3572209,117370.0,117360.0,1.53922781]
[1753906759397,0.3572209,117370.0,117360.0,1.14163]
[1753906761626,0.5167364,117370.0,117360.0,1.14163]
[1753906762224,0.5186964,117370.0,117360.0,1.14163]
[1753906762448,0.5218864,117370.0,117360.0,1.13955]
[1753906762645,0.5952864,117370.0,117360.0,1.17154]
[1753906762856,0.0952864,117370.0,117360.0,1.17154]
[1753906763060,0.5952864,117370.0,117360.0,1.17154]
[1753906763265,0.5218864,117370.0,117360.0,1.17154]
[1753906763697,0.5218864,117370.0,117360.0,1.27509]
[1753906765272,0.3618864,117370.0,117360.0,1.27509]
[1753906766223,0.3618864,117370.0,117360.0,1.14225]
[1753906766429,0.3618864,117370.0,117360.0,1.14436]
[1753906769823,0.3586964,117370.0,117360.0,1.14436]
[1753906770778,0.3567364,117370.0,117360.0,1.14436]
[1753906771260,0.3586864,117370.0,117360.0,1.14436]
[1753906772151,0.3617864,117370.0,117360.0,1.14436]
[1753906773196,0.76910089,117370.0,117360.0,1.14436]
[1753906773621,3.62728549,117380.0,117370.0,0.23089911]
[1753906773845,0.63218605,117380.0,117370.0,0.23104459]
[1753906773986,3.63722205,117380.0,117370.0,0.23104459]
[1753906774398,3.6546073,117380.0,117370.0,0.33608459]
[1753906774604,3.5800773,117380.0,117370.0,0.33608459]
[1753906774806,3.17276281,117380.0,117370.0,0.33808459]
[1753906775024,3.5800773,117380.0,117370.0,0.33808459]
[1753906775634,3.6546073,117380.0,117370.0,0.33808459]
[1753906775837,3.6546073,117380.0,117370.0,0.26324459]
[1753906776039,3.5800773,117380.0,117370.0,0.34108459]
[1753906776767,3.6546073,117380.0,117370.0,0.34108459]
[1753906776982,3.9946073,117380.0,117370.0,0.34108459]
[1753906777595,3.9200773,117380.0,117370.0,0.34108459]
[1753906778435,3.9946073,117380.0,117370.0,0.34108459]
[1753906779402,3.9977073,117380.0,117370.0,0.26624459]
[1753906779617,4.0821846,117380.0,117370.0,0.23604459]
[1753906780082,3.67487011,117380.0,117370.0,0.23604459]
[1753906780286,3.9946073,117380.0,117370.0,0.23604459]
[1753906780494,3.51276281,117380.0,117370.0,0.34108459]
[1753906780724,3.9200773,117380.0,117370.0,0.34108459]
[1753906781155,3.9946073,117380.0,117370.0,0.34108459]
[1753906782038,3.91209074,117380.0,117370.0,0.34108459]
[1753906782246,3.92009034,117380.0,117370.0,0.34319459]
[1753906782449,3.51277585,117380.0,117370.0,0.34620459]
[1753906782803,3.51082585,117380.0,117370.0,0.34620459]
[1753906783035,3.51082585,117380.0,117370.0,0.37620459]
[1753906784487,0.03298985,117380.0,117370.0,0.78351908]
[1753906784654,0.36499025,117380.0,117370.0,0.78351908]
[1753906784824,0.02499025,117380.0,117370.0,0.78351908]
[1753906785257,0.36499025,117380.0,117370.0,0.37620459]
[1753906785450,0.36499025,117380.0,117370.0,0.78351908]
[1753906785651,0.36499025,117380.0,117370.0,0.37620459]
[1753906787001,0.02499025,117380.0,117370.0,0.78351908]
[1753906789838,0.02499025,117380.0,117370.0,0.37620459]
[1753906790355,0.02499025,117380.0,117370.0,0.78351908]
[1753906791590,0.02499025,117380.0,117370.0,0.37620459]
[1753906791759,0.02499025,117380.0,117370.0,0.78351908]
[1753906792367,0.02499025,117380.0,117370.0,0.37620459]
[1753906793353,0.02499025,117380.0,117370.0,0.78351908]
[1753906794028,0.02499025,117380.0,117370.0,1.05543772]
[1753906794453,0.02499025,117380.0,117370.0,1.04691773]
[1753906794667,0.02499025,117380.0,117370.0,1.05543772]
[1753906794849,0.02499025,117380.0,117370.0,1.07047733]
[1753906795054,0.02499025,117380.0,117370.0,1.08199695]
[1753906795277,0.02499025,117380.0,117370.0,1.09944597]
[1753906795462,0.02499025,117380.0,117370.0,1.23192546]
[1753906795619,0.02499025,117380.0,117370.0,1.22892546]
[1753906795817,0.007605,117380.0,117370.0,1.22892546]
[1753906796083,0.007605,117380.0,117370.0,1.23192546]
[1753906796303,0.007605,117380.0,117370.0,1.25692546]
[1753906796761,0.007605,117380.0,117370.0,1.25392546]
[1753906797180,0.007605,117380.0,117370.0,1.25792546]
[1753906797563,0.007605,117380.0,117370.0,1.25492546]
[1753906797771,0.007605,117380.0,117370.0,1.25692546]
[1753906799411,0.007605,117380.0,117370.0,1.28192546]
[1753906799998,0.007605,117380.0,117370.0,1.54612546]
[1753906800647,0.007605,117380.0,117370.0,1.88612546]
[1753906800867,0.007605,117380.0,117370.0,2.32384141]
[1753906801068,0.03126858,117410.0,117400.0,0.23937556]
[1753906801286,0.34,117430.0,117420.0,0.0605]
[1753906801503,0.35007623,117430.0,117420.0,0.60025449]
[1753906801717,0.35007623,117430.0,117420.0,0.67169449]
[1753906802354,0.3421,117430.0,117420.0,0.26438]
[1753906802546,0.37309184,117430.0,117420.0,0.26452548]
[1753906803230,0.10833184,117430.0,117420.0,0.26452548]
[1753906803496,0.03309184,117430.0,117420.0,0.35430278]
[1753906804384,0.03309184,117430.0,117420.0,0.35108278]
[1753906805198,0.93429951,117430.0,117420.0,0.13258548]
[1753906805415,3.93235185,117430.0,117420.0,0.00014548]
[1753906805625,4.04116817,117430.0,117420.0,0.00014548]
[1753906806038,4.0327712,117430.0,117420.0,0.00014548]
[1753906806252,4.06479185,117430.0,117420.0,0.00014548]
[1753906806457,4.08531105,117430.0,117420.0,0.00014548]
[1753906806764,1.08027505,117430.0,117420.0,0.00014548]
[1753906806949,3.69393894,117430.0,117420.0,0.00014548]
[1753906807139,4.10125343,117430.0,117420.0,0.00014548]
[1753906807351,4.08073423,117430.0,117420.0,0.00014548]
[1753906807767,4.05682233,117430.0,117420.0,0.00014548]
[1753906807975,4.06479383,117430.0,117420.0,0.00014548]
[1753906808202,4.06579383,117430.0,117420.0,0.00014548]
[1753906808528,4.06479383,117430.0,117420.0,0.00014548]
[1753906808770,4.06679383,117430.0,117420.0,0.00014548]
[1753906809181,4.06879383,117430.0,117420.0,0.00014548]
[1753906809638,3.63127934,117430.0,117420.0,0.00014548]
[1753906809868,4.03859383,117430.0,117420.0,0.00014548]
[1753906810739,4.03659383,117430.0,117420.0,0.00014548]
[1753906811326,4.06679383,117430.0,117420.0,0.00014548]
[1753906811530,4.15127113,117430.0,117420.0,0.00014548]
[1753906811729,4.25169756,117430.0,117420.0,0.00014548]
[1753906812094,4.25269756,117430.0,117420.0,0.00014548]
[1753906813120,4.18155,117430.0,117420.0,0.00014548]
[1753906813340,3.77423551,117430.0,117420.0,0.00014548]
[1753906813541,4.18155,117430.0,117420.0,0.00014548]
[1753906813752,4.18155558,117430.0,117420.0,0.00014548]
[1753906814502,1.17451958,117430.0,117420.0,0.00014548]
[1753906814968,4.17955558,117430.0,117420.0,0.00014548]
[1753906815800,1.17451958,117430.0,117420.0,0.00014548]
[1753906815988,4.17955558,117430.0,117420.0,0.00014548]
[1753906816185,4.26403288,117430.0,117420.0,0.00014548]
[1753906817440,4.03313377,117430.0,117420.0,0.00014548]
[1753906818681,4.06329519,117430.0,117420.0,0.00014548]
[1753906819094,3.97881789,117430.0,117420.0,0.00014548]
[1753906819528,4.00100789,117430.0,117420.0,0.00014548]
[1753906819967,3.5936934,117430.0,117420.0,0.00014548]
[1753906820177,3.97881789,117430.0,117420.0,0.00014548]
[1753906820646,3.4567861,117430.0,117420.0,0.10798548]
[1753906820897,3.86410059,117430.0,117420.0,0.07688548]
[1753906821151,3.86410059,117430.0,117420.0,0.07480548]
[1753906821822,3.86410059,117430.0,117420.0,0.07158548]
[1753906822081,3.94857789,117430.0,117420.0,0.07158548]
[1753906823202,3.94857789,117430.0,117420.0,0.00014548]
[1753906823203,4.03376789,117430.0,117420.0,0.00014548]
[1753906823656,4.03378924,117430.0,117420.0,0.00014548]
[1753906824311,4.11826654,117430.0,117420.0,0.00014548]
[1753906824530,4.13529679,117430.0,117420.0,0.00014548]
[1753906824742,4.12196705,117430.0,117420.0,0.00014548]
[1753906825236,4.11345185,117430.0,117420.0,0.00014548]
[1753906825655,4.1049368,117430.0,117420.0,0.00014548]
[1753906826765,1.1255118,117430.0,117420.0,0.00014548]
[1753906826980,4.1305478,117430.0,117420.0,0.00014548]
[1753906827428,4.13906178,117430.0,117420.0,0.00014548]
[1753906827639,4.15239243,117430.0,117420.0,0.00014548]
[1753906827788,4.14387723,117430.0,117420.0,0.00014548]
[1753906828003,4.15239243,117430.0,117420.0,0.00014548]
[1753906828207,1.14735643,117430.0,117420.0,0.00014548]
[1753906828413,4.15239243,117430.0,117420.0,0.00014548]
[1753906828619,3.9014597,117430.0,117420.0,0.00014548]
[1753906828902,3.8084672,117430.0,117420.0,0.00014548]
[1753906830329,3.8084673,117430.0,117420.0,0.00014548]
[1753906831135,3.79513665,117430.0,117420.0,0.00014548]
[1753906833127,3.99513665,117430.0,117420.0,0.00014548]
[1753906833355,3.97294665,117430.0,117420.0,0.00014548]
[1753906834369,4.00406704,117430.0,117420.0,0.00014548]
[1753906834568,4.02753704,117430.0,117420.0,0.00014548]
[1753906835561,4.38086741,117430.0,117420.0,0.00014548]
[1753906835770,4.3734076,117430.0,117420.0,0.00014548]
[1753906835972,4.38939319,117430.0,117420.0,0.00014548]
[1753906836092,4.38939311,117430.0,117420.0,0.00014548]
[1753906836300,1.38435711,117430.0,117420.0,0.00014548]
[1753906836541,4.38087806,117430.0,117420.0,0.00014548]
[1753906836991,4.38939311,117430.0,117420.0,0.00014548]
[1753906837323,4.38087806,117430.0,117420.0,0.00014548]
[1753906837931,4.38939311,117430.0,117420.0,0.00014548]
[1753906838494,4.38087806,117430.0,117420.0,0.00014548]
[1753906839110,4.38941474,117430.0,117420.0,0.00014548]
[1753906839421,4.38089969,117430.0,117420.0,0.00014548]
[1753906841805,4.35742969,117430.0,117420.0,0.00014548]
[1753906842010,4.35742938,117430.0,117420.0,0.00014548]
[1753906842420,4.36594458,117430.0,117420.0,0.00014548]
[1753906842777,4.38941458,117430.0,117420.0,0.00014548]
[1753906842975,4.22502938,117430.0,117420.0,0.00014548]
[1753906843179,4.22502938,117430.0,117420.0,0.07763548]
[1753906843180,4.35738938,117430.0,117420.0,0.07763548]
[1753906844102,4.35738938,117430.0,117420.0,0.07469548]
[1753906844733,4.35738938,117430.0,117420.0,0.00014548]
[1753906844891,4.39788978,117430.0,117420.0,0.00014548]
[1753906845317,4.40640527,117430.0,117420.0,0.00014548]
[1753906845835,4.4064052,117430.0,117420.0,0.00014548]
[1753906846263,4.41492076,117430.0,117420.0,0.00014548]
[1753906846463,4.46615076,117430.0,117420.0,0.00014548]
[1753906846664,4.41492076,117430.0,117420.0,0.00014548]
[1753906846895,4.4064052,117430.0,117420.0,0.00014548]
[1753906847046,4.41492076,117430.0,117420.0,0.00014548]
[1753906847422,5.01990118,117430.0,117420.0,0.00014548]
[1753906847881,4.61258669,117430.0,117420.0,0.00014548]
[1753906848468,0.2821341,117410.0,117390.0,0.07455]
[1753906848644,4.09461462,117400.0,117390.0,0.07469554]
[1753906848854,4.49109303,117400.0,117390.0,0.00014554]
[1753906849152,4.26812069,117400.0,117390.0,0.07972554]
[1753906849325,3.97714069,117400.0,117390.0,0.11222554]
[1753906849495,3.97714069,117400.0,117390.0,0.14512554]
[1753906850301,3.5698262,117400.0,117390.0,0.14512554]
[1753906850501,3.97914069,117400.0,117390.0,0.14512554]
[1753906850706,0.62611179,117400.0,117390.0,0.14512554]